[Event "RUS-ch Blitz 2021"]
[Site "Sochi"]
[Date "2021.10.11"]
[Round "4.19"]
[White "Ivlev, Aleksey"]
[Black "Iljiushenok, Ilia"]
[Result "0-1"]
[ECO "E61"]
[WhiteElo "2315"]
[BlackElo "2554"]
[Annotator "ChessBase"]
[PlyCount "79"]
[EventDate "2021.10.11"]
[EventType "blitz"]
[EventCountry "RUS"]
[SourceTitle "playchess.com"]
[Source "ChessBase"]
[SourceQuality "1"]
[TimeControl "180+2"]

1. d4 {[%emt 0:00:00]} Nf6 {[%emt 0:00:00]} 2. c4 {[%emt 0:00:09]} g6 {[%emt 0:
00:02]} 3. Nc3 {[%emt 0:00:00]} Bg7 {[%emt 0:00:00]} 4. Nf3 {[%emt 0:00:00]} d6
{[%emt 0:00:00]} 5. Bg5 {[%emt 0:00:05]} h6 {[%emt 0:00:02]} 6. Bh4 {[%emt 0:
00:00]} g5 {[%emt 0:00:00]} 7. Bg3 {[%emt 0:00:00]} Nh5 {[%emt 0:00:00]} 8. e3
{[%emt 0:00:00]} c5 {[%emt 0:00:00]} 9. dxc5 {[%emt 0:00:34]} Nxg3 {[%emt 0:00:
04]} 10. hxg3 {[%emt 0:00:00]} dxc5 {[%emt 0:00:07]} 11. Qxd8+ {[%emt 0:00:00]}
Kxd8 {[%emt 0:00:00]} 12. O-O-O+ {[%emt 0:00:04]} Bd7 {[%emt 0:00:01]} 13. Bd3
{[%emt 0:00:22]} Nc6 {[%emt 0:00:08]} 14. Bf5 {[%emt 0:00:00]} e6 {[%emt 0:00:
01]} 15. Be4 {[%emt 0:00:00]} Ke7 {[%emt 0:00:07]} 16. g4 {[%emt 0:00:08]} Na5
{[%emt 0:00:29]} 17. Bd3 {[%emt 0:00:00]} a6 {[%emt 0:00:07]} 18. Kc2 {[%emt 0:
00:09]} Rab8 {[%emt 0:00:00]} 19. Ne4 {[%emt 0:00:21]} Rhc8 {[%emt 0:00:01]}
20. b3 {[%emt 0:00:13]} b5 {[%emt 0:00:01]} 21. Nfd2 {[%emt 0:00:00]} Nc6 {
[%emt 0:00:05]} 22. a3 {[%emt 0:00:06]} Ne5 {[%emt 0:00:11]} 23. Be2 {[%emt 0:
00:02]} Bc6 {[%emt 0:00:40]} 24. f4 {[%emt 0:00:32]} gxf4 {[%emt 0:00:20]} 25.
exf4 {[%emt 0:00:00]} Bxe4+ {[%emt 0:00:04]} 26. Nxe4 {[%emt 0:00:00]} Nc6 {
[%emt 0:00:00]} 27. Nxc5 {[%emt 0:00:45]} Nd4+ {[%emt 0:00:00]} 28. Rxd4 {
[%emt 0:00:02]} Bxd4 {[%emt 0:00:00]} 29. Ne4 {[%emt 0:00:00]} a5 {[%emt 0:00:
08]} 30. Rd1 {[%emt 0:00:04]} Bg7 {[%emt 0:00:19]} 31. f5 {[%emt 0:00:13]} bxc4
{[%emt 0:00:09]} 32. Bxc4 {[%emt 0:00:01]} a4 {[%emt 0:00:00]} 33. fxe6 {
[%emt 0:00:11]} axb3+ {[%emt 0:00:00]} 34. Kd3 {[%emt 0:00:00]} Rd8+ {[%emt 0:
00:03]} 35. Ke2 {[%emt 0:00:00]} Rxd1 {[%emt 0:00:03]} 36. Kxd1 {[%emt 0:00:00]
} b2 {[%emt 0:00:00]} 37. Nd2 {[%emt 0:00:06]} b1=Q+ {[%emt 0:00:05]} 38. Nxb1
{[%emt 0:00:00]} Rxb1+ {[%emt 0:00:02]} 39. Kc2 {[%emt 0:00:00]} Rb2+ {[%emt 0:
00:03]} 40. Kd3 {[%emt 0:00:01]} 0-1

[Event "RUS-ch Blitz 2021"]
[Site "Sochi"]
[Date "2021.10.11"]
[Round "4.21"]
[White "Zakhartsov, Vladimir"]
[Black "Timerkhanov, Alexander"]
[Result "1/2-1/2"]
[ECO "B22"]
[WhiteElo "2514"]
[BlackElo "2401"]
[Annotator "ChessBase"]
[PlyCount "83"]
[EventDate "2021.10.11"]
[EventType "blitz"]
[EventCountry "RUS"]
[SourceTitle "playchess.com"]
[Source "ChessBase"]
[SourceQuality "1"]
[TimeControl "180+2"]

1. e4 {[%emt 0:00:00]} c5 {[%emt 0:00:00]} 2. Nf3 {[%emt 0:00:00]} a6 {[%emt 0:
00:06]} 3. c3 {[%emt 0:00:03]} d5 {[%emt 0:00:00]} 4. exd5 {[%emt 0:00:00]}
Qxd5 {[%emt 0:00:18]} 5. d4 {[%emt 0:00:01]} Nf6 {[%emt 0:00:00]} 6. Be3 {
[%emt 0:00:00]} cxd4 {[%emt 0:00:00]} 7. cxd4 {[%emt 0:00:00]} e6 {[%emt 0:00:
00]} 8. Nc3 {[%emt 0:00:00]} Qd6 {[%emt 0:00:00]} 9. Rc1 {[%emt 0:00:33]} Nc6 {
[%emt 0:00:00]} 10. Bc4 {[%emt 0:00:07]} Be7 {[%emt 0:00:29]} 11. O-O {[%emt 0:
00:00]} O-O {[%emt 0:00:04]} 12. Qe2 {[%emt 0:00:23]} b5 {[%emt 0:00:07]} 13.
Bd3 {[%emt 0:00:17]} Bb7 {[%emt 0:00:00]} 14. Ne4 {[%emt 0:00:06]} Nxe4 {
[%emt 0:00:18]} 15. Bxe4 {[%emt 0:00:00]} Bf6 {[%emt 0:00:34]} 16. Rfd1 {
[%emt 0:00:45]} Na5 {[%emt 0:00:16]} 17. Bxb7 {[%emt 0:00:34]} Nxb7 {[%emt 0:
00:00]} 18. Bg5 {[%emt 0:00:03]} Bxg5 {[%emt 0:00:18]} 19. Nxg5 {[%emt 0:00:00]
} Qd5 {[%emt 0:00:04]} 20. h4 {[%emt 0:00:09]} h6 {[%emt 0:00:07]} 21. Ne4 {
[%emt 0:00:00]} Rac8 {[%emt 0:00:07]} 22. Nc3 {[%emt 0:00:06]} Qc4 {[%emt 0:00:
14]} 23. Qf3 {[%emt 0:00:25]} Nd6 {[%emt 0:00:00]} 24. d5 {[%emt 0:00:02]} e5 {
[%emt 0:00:00]} 25. g3 {[%emt 0:00:09]} b4 {[%emt 0:00:08]} 26. b3 {[%emt 0:00:
00]} Qc5 {[%emt 0:00:14]} 27. Ne4 {[%emt 0:00:08]} Qxc1 {[%emt 0:00:00]} 28.
Nxd6 {[%emt 0:00:00]} Qc3 {[%emt 0:00:22]} 29. Qg4 {[%emt 0:00:02]} Rcd8 {
[%emt 0:00:03]} 30. Nf5 {[%emt 0:00:00]} g6 {[%emt 0:00:03]} 31. Nxh6+ {
[%emt 0:00:03]} Kh7 {[%emt 0:00:00]} 32. Nf5 {[%emt 0:00:02]} gxf5 {[%emt 0:00:
12]} 33. Qh5+ {[%emt 0:00:00]} Kg7 {[%emt 0:00:00]} 34. Qg5+ {[%emt 0:00:03]}
Kh7 {[%emt 0:00:01]} 35. Qh5+ {[%emt 0:00:01]} Kg7 {[%emt 0:00:00]} 36. Qg5+ {
[%emt 0:00:03]} Kh7 {[%emt 0:00:00]} 37. Qxf5+ {[%emt 0:00:01]} Kg7 {[%emt 0:
00:05]} 38. Qg5+ {[%emt 0:00:03]} Kh7 {[%emt 0:00:00]} 39. Qh5+ {[%emt 0:00:04]
} Kg7 {[%emt 0:00:00]} 40. Qg5+ {[%emt 0:00:00]} Kh7 {[%emt 0:00:00]} 41. Qf5+
{[%emt 0:00:01]} Kg7 {[%emt 0:00:05]} 42. Qg5+ {[%emt 0:00:03]} 1/2-1/2

[Event "RUS-ch Blitz 2021"]
[Site "Sochi"]
[Date "2021.10.11"]
[Round "4.22"]
[White "Nuristani, Iman"]
[Black "Savchenko, Boris"]
[Result "0-1"]
[ECO "A45"]
[WhiteElo "2171"]
[BlackElo "2535"]
[Annotator "ChessBase"]
[PlyCount "90"]
[EventDate "2021.10.11"]
[EventType "blitz"]
[EventCountry "RUS"]
[SourceTitle "playchess.com"]
[Source "ChessBase"]
[SourceQuality "1"]
[TimeControl "180+2"]

1. d4 {[%emt 0:00:00]} Nf6 {[%emt 0:00:00]} 2. Bg5 {[%emt 0:00:06]} c5 {
[%emt 0:00:01]} 3. Bxf6 {[%emt 0:00:16]} gxf6 {[%emt 0:00:01]} 4. d5 {[%emt 0:
00:00]} Qb6 {[%emt 0:00:00]} 5. Qc1 {[%emt 0:00:00]} f5 {[%emt 0:00:00]} 6. c4
{[%emt 0:00:01]} Bg7 {[%emt 0:00:04]} 7. Nc3 {[%emt 0:00:00]} d6 {[%emt 0:00:
06]} 8. e3 {[%emt 0:00:05]} Nd7 {[%emt 0:00:00]} 9. Bd3 {[%emt 0:00:00]} Ne5 {
[%emt 0:00:03]} 10. Be2 {[%emt 0:00:05]} h5 {[%emt 0:00:26]} 11. Nf3 {[%emt 0:
00:15]} h4 {[%emt 0:00:03]} 12. h3 {[%emt 0:00:37]} Bd7 {[%emt 0:00:17]} 13.
Qc2 {[%emt 0:00:03]} a6 {[%emt 0:00:00]} 14. Nd2 {[%emt 0:00:40]} Bf6 {[%emt 0:
00:54]} 15. f4 {[%emt 0:00:00]} Ng6 {[%emt 0:00:02]} 16. Bd3 {[%emt 0:00:07]}
e6 {[%emt 0:00:00]} 17. O-O {[%emt 0:00:20]} Rg8 {[%emt 0:00:00]} 18. Kh1 {
[%emt 0:00:07]} Ne7 {[%emt 0:00:13]} 19. e4 {[%emt 0:00:05]} O-O-O {[%emt 0:00:
17]} 20. Rab1 {[%emt 0:00:14]} Qc7 {[%emt 0:00:05]} 21. a3 {[%emt 0:00:12]} Bd4
{[%emt 0:00:16]} 22. b4 {[%emt 0:00:06]} fxe4 {[%emt 0:00:03]} 23. Bxe4 {
[%emt 0:00:14]} cxb4 {[%emt 0:00:13]} 24. axb4 {[%emt 0:00:05]} Bxc3 {[%emt 0:
00:04]} 25. Qxc3 {[%emt 0:00:06]} exd5 {[%emt 0:00:08]} 26. Bf3 {[%emt 0:00:00]
} Bb5 {[%emt 0:00:04]} 27. Rfe1 {[%emt 0:00:09]} dxc4 {[%emt 0:00:00]} 28. Qf6
{[%emt 0:00:00]} Rge8 {[%emt 0:00:07]} 29. Rbc1 {[%emt 0:00:00]} d5 {[%emt 0:
00:03]} 30. Qxf7 {[%emt 0:00:06]} Qd6 {[%emt 0:00:05]} 31. Re6 {[%emt 0:00:00]}
Qxb4 {[%emt 0:00:00]} 32. Nf1 {[%emt 0:00:04]} Bd7 {[%emt 0:00:02]} 33. Re2 {
[%emt 0:00:00]} Bc6 {[%emt 0:00:04]} 34. Rec2 {[%emt 0:00:03]} Qd6 {[%emt 0:00:
01]} 35. Qh5 {[%emt 0:00:00]} Qxf4 {[%emt 0:00:01]} 36. Rb1 {[%emt 0:00:05]}
Kb8 {[%emt 0:00:05]} 37. Qh7 {[%emt 0:00:00]} Nf5 {[%emt 0:00:01]} 38. Qg6 {
[%emt 0:00:05]} Rg8 {[%emt 0:00:00]} 39. Qxc6 {[%emt 0:00:01]} Qc7 {[%emt 0:00:
13]} 40. Qe6 {[%emt 0:00:00]} Nd4 {[%emt 0:00:00]} 41. Qb6 {[%emt 0:00:04]}
Qxb6 {[%emt 0:00:02]} 42. Rxb6 {[%emt 0:00:00]} Nxc2 {[%emt 0:00:03]} 43. Nd2 {
[%emt 0:00:01]} Nd4 {[%emt 0:00:00]} 44. Bg4 {[%emt 0:00:00]} Kc7 {[%emt 0:00:
02]} 45. Rb1 {[%emt 0:00:01]} b5 {[%emt 0:00:00]} 0-1

[Event "RUS-ch Blitz 2021"]
[Site "Sochi"]
[Date "2021.10.11"]
[Round "4.23"]
[White "Keosidi, Konstantin"]
[Black "Nozdrachev, Vladislav"]
[Result "0-1"]
[ECO "C46"]
[WhiteElo "2404"]
[BlackElo "2495"]
[Annotator "ChessBase"]
[PlyCount "50"]
[EventDate "2021.10.11"]
[EventType "blitz"]
[EventCountry "RUS"]
[SourceTitle "playchess.com"]
[Source "ChessBase"]
[SourceQuality "1"]
[TimeControl "180+2"]

1. e4 {[%emt 0:00:00]} e5 {[%emt 0:00:00]} 2. Nf3 {[%emt 0:00:00]} Nc6 {
[%emt 0:00:07]} 3. Nc3 {[%emt 0:00:03]} Bc5 {[%emt 0:00:08]} 4. Nxe5 {[%emt 0:
00:00]} Nxe5 {[%emt 0:00:00]} 5. d4 {[%emt 0:00:09]} Bd6 {[%emt 0:00:00]} 6.
dxe5 {[%emt 0:00:00]} Bxe5 {[%emt 0:00:00]} 7. f4 {[%emt 0:00:06]} Bxc3+ {
[%emt 0:00:05]} 8. bxc3 {[%emt 0:00:02]} Qe7 {[%emt 0:00:03]} 9. Qd4 {[%emt 0:
00:46]} Nf6 {[%emt 0:00:12]} 10. Bd3 {[%emt 0:00:00]} d5 {[%emt 0:00:43]} 11.
e5 {[%emt 0:00:06]} c5 {[%emt 0:00:03]} 12. Bb5+ {[%emt 0:00:12]} Bd7 {[%emt 0:
00:02]} 13. Bxd7+ {[%emt 0:00:00]} Qxd7 {[%emt 0:00:03]} 14. Qxc5 {[%emt 0:00:
11]} Ne4 {[%emt 0:00:00]} 15. Qb4 {[%emt 0:00:26]} a5 {[%emt 0:00:14]} 16. Qd4
{[%emt 0:00:15]} Rc8 {[%emt 0:00:00]} 17. O-O {[%emt 0:00:09]} Nxc3 {[%emt 0:
00:15]} 18. Re1 {[%emt 0:00:11]} O-O {[%emt 0:00:03]} 19. Ba3 {[%emt 0:00:05]}
Nb5 {[%emt 0:00:09]} 20. Qa4 {[%emt 0:00:08]} Rc4 {[%emt 0:00:06]} 21. Qxa5 {
[%emt 0:00:02]} b6 {[%emt 0:00:28]} 22. Qa6 {[%emt 0:00:00]} Rfc8 {[%emt 0:00:
18]} 23. Rab1 {[%emt 0:00:06]} Nd4 {[%emt 0:00:16]} 24. Bd6 {[%emt 0:00:31]}
Rxc2 {[%emt 0:00:06]} 25. Qxb6 {[%emt 0:00:00]} Qg4 {[%emt 0:00:01]} 0-1

[Event "RUS-ch Blitz 2021"]
[Site "Sochi"]
[Date "2021.10.11"]
[Round "4.24"]
[White "Maltsevskaya, Aleksandra"]
[Black "Bologan, Victor"]
[Result "0-1"]
[ECO "B40"]
[WhiteElo "2411"]
[BlackElo "2574"]
[Annotator "ChessBase"]
[PlyCount "74"]
[EventDate "2021.10.11"]
[EventType "blitz"]
[EventCountry "RUS"]
[SourceTitle "playchess.com"]
[Source "ChessBase"]
[SourceQuality "1"]
[TimeControl "180+2"]

1. e4 {[%emt 0:00:00]} c5 {[%emt 0:00:07]} 2. Nf3 {[%emt 0:00:02]} e6 {[%emt 0:
00:00]} 3. g3 {[%emt 0:00:12]} b6 {[%emt 0:00:00]} 4. Bg2 {[%emt 0:00:08]} Bb7
{[%emt 0:00:00]} 5. d3 {[%emt 0:00:00]} d6 {[%emt 0:00:10]} 6. a4 {[%emt 0:00:
07]} a6 {[%emt 0:00:03]} 7. Nbd2 {[%emt 0:00:06]} Nf6 {[%emt 0:00:04]} 8. O-O {
[%emt 0:00:05]} Be7 {[%emt 0:00:00]} 9. Nc4 {[%emt 0:00:04]} d5 {[%emt 0:00:16]
} 10. exd5 {[%emt 0:00:11]} exd5 {[%emt 0:00:00]} 11. Ne3 {[%emt 0:00:21]} g6 {
[%emt 0:00:16]} 12. d4 {[%emt 0:00:12]} O-O {[%emt 0:00:07]} 13. a5 {[%emt 0:
00:00]} bxa5 {[%emt 0:00:05]} 14. Ne5 {[%emt 0:00:29]} Qc7 {[%emt 0:00:34]} 15.
N5g4 {[%emt 0:00:14]} Nbd7 {[%emt 0:00:07]} 16. dxc5 {[%emt 0:00:12]} Qxc5 {
[%emt 0:00:07]} 17. Bd2 {[%emt 0:00:08]} h5 {[%emt 0:00:43]} 18. Nxf6+ {
[%emt 0:00:08]} Nxf6 {[%emt 0:00:02]} 19. Rxa5 {[%emt 0:00:00]} Qb6 {[%emt 0:
00:00]} 20. Bc3 {[%emt 0:00:39]} Rfd8 {[%emt 0:00:15]} 21. Nxd5 {[%emt 0:00:07]
} Bxd5 {[%emt 0:00:18]} 22. Bxd5 {[%emt 0:00:00]} Rac8 {[%emt 0:00:02]} 23.
Bxf6 {[%emt 0:00:20]} Qxa5 {[%emt 0:00:11]} 24. Bxe7 {[%emt 0:00:00]} Rxd5 {
[%emt 0:00:00]} 25. Qf3 {[%emt 0:00:05]} Rxc2 {[%emt 0:00:09]} 26. b4 {[%emt 0:
00:00]} Qb5 {[%emt 0:00:00]} 27. Bc5 {[%emt 0:00:02]} Rf5 {[%emt 0:00:03]} 28.
Qe4 {[%emt 0:00:00]} Qc4 {[%emt 0:00:01]} 29. Qe8+ {[%emt 0:00:03]} Kh7 {
[%emt 0:00:03]} 30. Qd7 {[%emt 0:00:05]} Rc1 {[%emt 0:00:04]} 31. Rxc1 {
[%emt 0:00:00]} Qxc1+ {[%emt 0:00:00]} 32. Kg2 {[%emt 0:00:00]} Qc4 {[%emt 0:
00:01]} 33. Qe8 {[%emt 0:00:00]} Qe6 {[%emt 0:00:01]} 34. Qb8 {[%emt 0:00:08]}
Qc6+ {[%emt 0:00:00]} 35. Kg1 {[%emt 0:00:01]} Qd5 {[%emt 0:00:00]} 36. h4 {
[%emt 0:00:02]} Re5 {[%emt 0:00:05]} 37. Kh2 {[%emt 0:00:03]} Re1 {[%emt 0:00:
01]} 0-1

[Event "RUS-ch Blitz 2021"]
[Site "Sochi"]
[Date "2021.10.11"]
[Round "5.2"]
[White "Sarana, Alexey"]
[Black "Timofeev, Artyom"]
[Result "0-1"]
[ECO "A50"]
[WhiteElo "2649"]
[BlackElo "2586"]
[Annotator "ChessBase"]
[PlyCount "170"]
[EventDate "2021.10.11"]
[EventType "blitz"]
[EventCountry "RUS"]
[SourceTitle "playchess.com"]
[Source "ChessBase"]
[SourceQuality "1"]
[TimeControl "180+2"]

1. d4 {[%emt 0:00:00]} Nf6 {[%emt 0:00:05]} 2. c4 {[%emt 0:00:03]} b6 {[%emt 0:
00:00]} 3. f3 {[%emt 0:00:00]} d5 {[%emt 0:00:00]} 4. cxd5 {[%emt 0:00:06]}
Nxd5 {[%emt 0:00:00]} 5. e4 {[%emt 0:00:00]} Nf6 {[%emt 0:00:00]} 6. Nc3 {
[%emt 0:00:00]} e6 {[%emt 0:00:00]} 7. Be3 {[%emt 0:00:01]} Be7 {[%emt 0:00:01]
} 8. Bc4 {[%emt 0:00:03]} O-O {[%emt 0:00:09]} 9. Nge2 {[%emt 0:00:00]} Ba6 {
[%emt 0:00:00]} 10. Bxa6 {[%emt 0:00:07]} Nxa6 {[%emt 0:00:00]} 11. O-O {
[%emt 0:00:04]} c6 {[%emt 0:00:07]} 12. Qa4 {[%emt 0:00:04]} Qc8 {[%emt 0:00:
04]} 13. Rac1 {[%emt 0:00:00]} Qb7 {[%emt 0:00:00]} 14. a3 {[%emt 0:00:08]}
Rac8 {[%emt 0:00:02]} 15. b4 {[%emt 0:00:10]} Nb8 {[%emt 0:00:07]} 16. Rc2 {
[%emt 0:00:11]} Nbd7 {[%emt 0:00:12]} 17. Rfc1 {[%emt 0:00:00]} c5 {[%emt 0:00:
00]} 18. dxc5 {[%emt 0:00:39]} bxc5 {[%emt 0:00:04]} 19. b5 {[%emt 0:00:00]}
Nb6 {[%emt 0:00:00]} 20. Qb3 {[%emt 0:00:14]} Nfd7 {[%emt 0:00:08]} 21. a4 {
[%emt 0:00:06]} a5 {[%emt 0:00:05]} 22. Qa2 {[%emt 0:00:17]} Rfd8 {[%emt 0:00:
00]} 23. Rd2 {[%emt 0:00:02]} Ne5 {[%emt 0:00:06]} 24. Rcd1 {[%emt 0:00:21]}
Rxd2 {[%emt 0:00:05]} 25. Bxd2 {[%emt 0:00:00]} c4 {[%emt 0:00:03]} 26. Be3 {
[%emt 0:00:08]} Bb4 {[%emt 0:00:06]} 27. Qc2 {[%emt 0:00:10]} Nbd7 {[%emt 0:00:
03]} 28. Na2 {[%emt 0:00:07]} h6 {[%emt 0:00:19]} 29. Nd4 {[%emt 0:00:18]} Bc5
{[%emt 0:00:04]} 30. Nc3 {[%emt 0:00:00]} Nd3 {[%emt 0:00:05]} 31. Qe2 {
[%emt 0:00:07]} Qb6 {[%emt 0:00:12]} 32. Nc2 {[%emt 0:00:05]} N7e5 {[%emt 0:00:
11]} 33. Bxc5 {[%emt 0:00:00]} Nxc5 {[%emt 0:00:05]} 34. Qe3 {[%emt 0:00:04]}
Ned3 {[%emt 0:00:03]} 35. h3 {[%emt 0:00:11]} Nb4 {[%emt 0:00:06]} 36. Nd4 {
[%emt 0:00:02]} Ncd3 {[%emt 0:00:08]} 37. Nf5 {[%emt 0:00:05]} Qc7 {[%emt 0:00:
14]} 38. b6 {[%emt 0:00:10]} Qd7 {[%emt 0:00:03]} 39. Nd4 {[%emt 0:00:08]} Rb8
{[%emt 0:00:02]} 40. Ndb5 {[%emt 0:00:00]} Qc6 {[%emt 0:00:01]} 41. Kh2 {
[%emt 0:00:06]} Qxb6 {[%emt 0:00:04]} 42. Qxb6 {[%emt 0:00:04]} Rxb6 {[%emt 0:
00:00]} 43. Rd2 {[%emt 0:00:03]} Rb8 {[%emt 0:00:01]} 44. Nd4 {[%emt 0:00:03]}
Kf8 {[%emt 0:00:06]} 45. Ndb5 {[%emt 0:00:00]} g5 {[%emt 0:00:00]} 46. h4 {
[%emt 0:00:03]} Ke7 {[%emt 0:00:04]} 47. Kg3 {[%emt 0:00:00]} Rg8 {[%emt 0:00:
00]} 48. hxg5 {[%emt 0:00:03]} hxg5 {[%emt 0:00:00]} 49. Kg4 {[%emt 0:00:00]}
Nc6 {[%emt 0:00:05]} 50. Kg3 {[%emt 0:00:00]} Nce5 {[%emt 0:00:02]} 51. Ne2 {
[%emt 0:00:04]} Nc5 {[%emt 0:00:05]} 52. Nec3 {[%emt 0:00:04]} Ned3 {[%emt 0:
00:03]} 53. Nd4 {[%emt 0:00:00]} Rc8 {[%emt 0:00:06]} 54. Rc2 {[%emt 0:00:00]}
Kf6 {[%emt 0:00:08]} 55. Kg4 {[%emt 0:00:06]} Ne5+ {[%emt 0:00:00]} 56. Kg3 {
[%emt 0:00:00]} Ncd3 {[%emt 0:00:00]} 57. Ncb5 {[%emt 0:00:00]} Nb4 {[%emt 0:
00:06]} 58. Rc3 {[%emt 0:00:02]} Rd8 {[%emt 0:00:03]} 59. Kf2 {[%emt 0:00:04]}
g4 {[%emt 0:00:03]} 60. f4 {[%emt 0:00:03]} Ned3+ {[%emt 0:00:02]} 61. Ke3 {
[%emt 0:00:02]} Nxf4 {[%emt 0:00:06]} 62. Kxf4 {[%emt 0:00:03]} e5+ {[%emt 0:
00:00]} 63. Ke3 {[%emt 0:00:02]} exd4+ {[%emt 0:00:00]} 64. Nxd4 {[%emt 0:00:
01]} Rc8 {[%emt 0:00:01]} 65. Kf4 {[%emt 0:00:01]} Nd3+ {[%emt 0:00:04]} 66.
Ke3 {[%emt 0:00:02]} Ke5 {[%emt 0:00:03]} 67. Nb5 {[%emt 0:00:04]} Ke6 {
[%emt 0:00:20]} 68. Kd4 {[%emt 0:00:00]} Ne5 {[%emt 0:00:02]} 69. Ke3 {[%emt 0:
00:04]} Rd8 {[%emt 0:00:02]} 70. Nd4+ {[%emt 0:00:02]} Kf6 {[%emt 0:00:01]} 71.
Rc2 {[%emt 0:00:02]} Kg6 {[%emt 0:00:02]} 72. Rb2 {[%emt 0:00:02]} c3 {[%emt 0:
00:05]} 73. Rb6+ {[%emt 0:00:02]} f6 {[%emt 0:00:01]} 74. Rb5 {[%emt 0:00:05]}
Rc8 {[%emt 0:00:08]} 75. Nc2 {[%emt 0:00:00]} Rd8 {[%emt 0:00:23]} 76. Nd4 {
[%emt 0:00:02]} Nc4+ {[%emt 0:00:10]} 77. Kd3 {[%emt 0:00:00]} c2 {[%emt 0:00:
02]} 78. Kxc2 {[%emt 0:00:04]} Rxd4 {[%emt 0:00:00]} 79. Kc3 {[%emt 0:00:01]}
Rxe4 {[%emt 0:00:02]} 80. Rc5 {[%emt 0:00:00]} Ne5 {[%emt 0:00:01]} 81. Rxa5 {
[%emt 0:00:03]} Re2 {[%emt 0:00:00]} 82. Ra8 {[%emt 0:00:00]} Rxg2 {[%emt 0:00:
02]} 83. a5 {[%emt 0:00:00]} Ra2 {[%emt 0:00:02]} 84. Kb3 {[%emt 0:00:00]} Ra1
{[%emt 0:00:02]} 85. Kb2 {[%emt 0:00:00]} Rxa5 {[%emt 0:00:01]} 0-1

[Event "RUS-ch Blitz 2021"]
[Site "Sochi"]
[Date "2021.10.11"]
[Round "5.3"]
[White "Moiseenko, Vadim"]
[Black "Dreev, Aleksey"]
[Result "0-1"]
[ECO "D13"]
[WhiteElo "2542"]
[BlackElo "2635"]
[Annotator "ChessBase"]
[PlyCount "67"]
[EventDate "2021.10.11"]
[EventType "blitz"]
[EventCountry "RUS"]
[SourceTitle "playchess.com"]
[Source "ChessBase"]
[SourceQuality "1"]
[TimeControl "180+2"]

1. Nf3 {[%emt 0:00:00]} d5 {[%emt 0:00:05]} 2. c4 {[%emt 0:00:03]} c6 {[%emt 0:
00:00]} 3. d4 {[%emt 0:00:07]} Nf6 {[%emt 0:00:00]} 4. cxd5 {[%emt 0:00:02]}
cxd5 {[%emt 0:00:03]} 5. Nc3 {[%emt 0:00:00]} Nc6 {[%emt 0:00:02]} 6. Bf4 {
[%emt 0:00:03]} e6 {[%emt 0:00:03]} 7. e3 {[%emt 0:00:06]} Bd6 {[%emt 0:00:06]}
8. Bg5 {[%emt 0:00:16]} h6 {[%emt 0:00:11]} 9. Bh4 {[%emt 0:00:00]} Bd7 {
[%emt 0:00:32]} 10. Rc1 {[%emt 0:00:06]} Rc8 {[%emt 0:00:00]} 11. Bd3 {[%emt 0:
00:05]} O-O {[%emt 0:00:00]} 12. Bb1 {[%emt 0:00:06]} Be7 {[%emt 0:00:13]} 13.
O-O {[%emt 0:00:04]} Nh5 {[%emt 0:00:10]} 14. Bxe7 {[%emt 0:00:05]} Qxe7 {
[%emt 0:00:04]} 15. Qd3 {[%emt 0:00:35]} g6 {[%emt 0:00:20]} 16. Rfe1 {[%emt 0:
00:13]} Rfd8 {[%emt 0:00:12]} 17. Qd2 {[%emt 0:00:08]} Kg7 {[%emt 0:00:07]} 18.
Ne5 {[%emt 0:00:13]} Be8 {[%emt 0:00:16]} 19. f4 {[%emt 0:00:06]} Nf6 {[%emt 0:
00:01]} 20. Rf1 {[%emt 0:00:03]} b5 {[%emt 0:00:07]} 21. Nxb5 {[%emt 0:00:12]}
Ne4 {[%emt 0:00:16]} 22. Bxe4 {[%emt 0:00:05]} dxe4 {[%emt 0:00:09]} 23. Nc3 {
[%emt 0:00:04]} Qb7 {[%emt 0:00:11]} 24. Qf2 {[%emt 0:00:18]} Ne7 {[%emt 0:00:
00]} 25. b3 {[%emt 0:00:26]} Rc7 {[%emt 0:00:10]} 26. Ne2 {[%emt 0:00:03]} Rdc8
{[%emt 0:00:05]} 27. Rxc7 {[%emt 0:00:05]} Rxc7 {[%emt 0:00:00]} 28. Nc4 {
[%emt 0:00:03]} Bb5 {[%emt 0:00:14]} 29. Nd6 {[%emt 0:00:05]} Qd5 {[%emt 0:00:
04]} 30. Nxb5 {[%emt 0:00:00]} Qxb5 {[%emt 0:00:00]} 31. Rc1 {[%emt 0:00:10]}
Rxc1+ {[%emt 0:00:10]} 32. Nxc1 {[%emt 0:00:00]} Qb4 {[%emt 0:00:00]} 33. Kf1 {
[%emt 0:00:09]} Nd5 {[%emt 0:00:02]} 34. Qc2 {[%emt 0:00:07]} 0-1

[Event "RUS-ch Blitz 2021"]
[Site "Sochi"]
[Date "2021.10.11"]
[Round "5.4"]
[White "Sjugirov, Sanan"]
[Black "Demidov, Mikhail"]
[Result "1-0"]
[ECO "D17"]
[WhiteElo "2663"]
[BlackElo "2551"]
[Annotator "ChessBase"]
[PlyCount "105"]
[EventDate "2021.10.11"]
[EventType "blitz"]
[EventCountry "RUS"]
[SourceTitle "playchess.com"]
[Source "ChessBase"]
[SourceQuality "1"]
[TimeControl "180+2"]

1. d4 {[%emt 0:00:00]} d5 {[%emt 0:00:00]} 2. c4 {[%emt 0:00:00]} c6 {[%emt 0:
00:00]} 3. Nf3 {[%emt 0:00:00]} Nf6 {[%emt 0:00:05]} 4. Nc3 {[%emt 0:00:07]}
dxc4 {[%emt 0:00:00]} 5. a4 {[%emt 0:00:06]} Bf5 {[%emt 0:00:00]} 6. Ne5 {
[%emt 0:00:08]} Na6 {[%emt 0:00:00]} 7. e3 {[%emt 0:00:03]} Bd3 {[%emt 0:00:15]
} 8. Nxd3 {[%emt 0:00:25]} cxd3 {[%emt 0:00:00]} 9. Bxd3 {[%emt 0:00:00]} Nb4 {
[%emt 0:00:00]} 10. Be2 {[%emt 0:00:07]} e6 {[%emt 0:00:00]} 11. a5 {[%emt 0:
00:07]} Be7 {[%emt 0:00:13]} 12. O-O {[%emt 0:00:03]} O-O {[%emt 0:00:01]} 13.
Bd2 {[%emt 0:00:03]} a6 {[%emt 0:00:51]} 14. Na4 {[%emt 0:00:23]} Nbd5 {
[%emt 0:00:12]} 15. Qc2 {[%emt 0:00:18]} Bb4 {[%emt 0:01:04]} 16. Bxb4 {
[%emt 0:00:35]} Nxb4 {[%emt 0:00:00]} 17. Qc5 {[%emt 0:00:00]} Nbd5 {[%emt 0:
00:04]} 18. b4 {[%emt 0:00:21]} Ne4 {[%emt 0:00:16]} 19. Qc2 {[%emt 0:00:05]}
Nef6 {[%emt 0:00:11]} 20. Rab1 {[%emt 0:00:00]} Qe7 {[%emt 0:00:00]} 21. Nc5 {
[%emt 0:00:03]} Rab8 {[%emt 0:00:04]} 22. Bf3 {[%emt 0:00:09]} Rfd8 {[%emt 0:
00:00]} 23. g3 {[%emt 0:00:07]} g6 {[%emt 0:00:00]} 24. Rfc1 {[%emt 0:00:02]}
Kg7 {[%emt 0:00:07]} 25. Bg2 {[%emt 0:00:02]} h5 {[%emt 0:00:00]} 26. h4 {
[%emt 0:00:07]} Ng4 {[%emt 0:00:07]} 27. Qe2 {[%emt 0:00:13]} Ngf6 {[%emt 0:00:
00]} 28. Bf3 {[%emt 0:00:00]} Re8 {[%emt 0:00:07]} 29. Nd3 {[%emt 0:00:11]}
Red8 {[%emt 0:00:06]} 30. Kg2 {[%emt 0:00:00]} Rh8 {[%emt 0:00:11]} 31. Qb2 {
[%emt 0:00:00]} Nc7 {[%emt 0:00:08]} 32. Nc5 {[%emt 0:00:02]} Nb5 {[%emt 0:00:
00]} 33. Re1 {[%emt 0:00:10]} Rhd8 {[%emt 0:00:02]} 34. Rbd1 {[%emt 0:00:00]}
Kh7 {[%emt 0:00:00]} 35. e4 {[%emt 0:00:07]} Kg8 {[%emt 0:00:05]} 36. d5 {
[%emt 0:00:00]} e5 {[%emt 0:00:01]} 37. dxc6 {[%emt 0:00:05]} bxc6 {[%emt 0:00:
00]} 38. Nxa6 {[%emt 0:00:03]} Ra8 {[%emt 0:00:00]} 39. Nc5 {[%emt 0:00:00]}
Nd4 {[%emt 0:00:02]} 40. Qc3 {[%emt 0:00:04]} Kg7 {[%emt 0:00:00]} 41. Nb3 {
[%emt 0:00:01]} Rab8 {[%emt 0:00:06]} 42. Nxd4 {[%emt 0:00:01]} exd4 {[%emt 0:
00:00]} 43. Rxd4 {[%emt 0:00:01]} Rxd4 {[%emt 0:00:03]} 44. Qxd4 {[%emt 0:00:
00]} Rxb4 {[%emt 0:00:00]} 45. Qc3 {[%emt 0:00:04]} Rb5 {[%emt 0:00:07]} 46.
Ra1 {[%emt 0:00:03]} Qa7 {[%emt 0:00:03]} 47. e5 {[%emt 0:00:03]} Nd5 {[%emt 0:
00:00]} 48. Qxc6 {[%emt 0:00:00]} Nc7 {[%emt 0:00:04]} 49. Qf6+ {[%emt 0:00:01]
} Kg8 {[%emt 0:00:01]} 50. Qe7 {[%emt 0:00:03]} Rxa5 {[%emt 0:00:01]} 51. Rc1 {
[%emt 0:00:02]} Ne6 {[%emt 0:00:04]} 52. Rc8+ {[%emt 0:00:03]} Kh7 {[%emt 0:00:
00]} 53. Qe8 {[%emt 0:00:00]} 1-0